Cogmind - Beta 14 @@@ ROGUE MODE // 2025.03.12 @ 21:46:22 Player: BoomBlip Result: Destroyed by 1I-XDT(R) with Subdweller Machine Gun Performance ------------- Evolutions (0) 0 Regions Visited (3) 600 Robots Destroyed (25) 125 Value Destroyed (379) 379 Prototype IDs (0) 0 Alien Tech Used (0) 0 Bonus (0) 0 TOTAL SCORE: 1104 Bonus ------- None Cogmind --------- Core Integrity 0/250 Matter 299/300 Energy 86/100 System Corruption 0% Temperature Cool (0) Movement Rolling (110) Ox2 Location -10/Subcaves Parts ------- > --- POWER (1) -------- (None) > --- PROPULSION (2) --- Wheel > --- UTILITY (2) ------ Large Storage Unit Power Shielding > --- WEAPON (2) ------- Beam Cannon Beam Cannon > --- INVENTORY (15) --- Light Ion Engine Light Ion Engine Aluminum Leg Aluminum Leg Wheel Large Storage Unit Light Armor Plating Grenade Launcher Peak State ------------ > --- POWER ------------ Ion Engine > --- PROPULSION ------- Aluminum Leg Aluminum Leg > --- UTILITY ---------- Small Storage Unit Large Storage Unit > --- WEAPON ----------- Medium Laser Light Assault Rifle > --- INVENTORY -------- Light Ion Engine Light Treads Light Treads Wheel Compact Wheel Light Assault Rifle [Rating: 7] Favorites ----------- Power Ion Engine Engine Ion Engine Propulsion Wheel Leg Aluminum Leg Wheel Wheel Utility Large Storage Unit Storage Large Storage Unit Protection Power Shielding Weapon Beam Cannon Energy Gun Small Laser Energy Cannon Beam Cannon Ballistic Gun Assault Rifle Launcher Grenade Launcher Build | -11 -10 -10 -10 ------- Run | Yrd Mat Min Sub Slots Evolved . | . . . . Power . | . . . . Propulsion . | . . . . Utility . | . . . . Weapon . | . . . . Parts Attached 19 | . 18 1 . Power 2 | . 2 . . Engine 2 | . 2 . . Core . | . . . . Reactor . | . . . . Propulsion 7 | . 7 . . Treads . | . . . . Leg . | . . . . Wheel 7 | . 7 . . Hover . | . . . . Flight . | . . . . Utility 2 | . 2 . . Device . | . . . . Storage 1 | . 1 . . Processor . | . . . . Hackware . | . . . . Protection 1 | . 1 . . Artifact . | . . . . Weapon 8 | . 7 1 . Energy Gun 1 | . 1 . . Energy Cannon 2 | . 1 1 . Ballistic Gun 4 | . 4 . . Ballistic Cannon . | . . . . Launcher 1 | . 1 . . Special Weapon . | . . . . Impact Weapon . | . . . . Slashing Weapon . | . . . . Piercing Weapon . | . . . . Special Melee Weapon . | . . . . Unidentified Prototypes . | . . . . Parts Lost 11 | . 9 . 2 Power 2 | . 1 . 1 Propulsion 5 | . 4 . 1 Utility . | . . . . Weapon 4 | . 4 . . Highest Loss Streak 4 | . 4 . 2 To Critical Strikes . | . . . . Average Slot Usage (%) 87 | . 82 100 95 Engine 13 | . 13 14 11 Wheel 21 | . 18 28 25 Storage 14 | . 14 14 14 Protection 11 | . 10 14 14 Energy Gun 7 | . 11 . . Energy Cannon 8 | . . 26 28 Ballistic Gun 8 | . 11 . . Launcher 1 | . 1 1 . Peak Build Rating 7 | 6 7 7 7 Average Rating 6 | 6 5 7 6 On Entrance 6 | 6 6 7 7 Naked Turns . | . . . . Heaviest Build 32 | 13 32 32 32 Greatest Support 26 | 20 26 20 20 Greatest Overweight (x) 9 | . 9 1 1 Average Overweight (x) 1 | . 1 1 1 Largest Inventory Capacity 15 | 8 15 15 15 Average Capacity 14 | 8 14 15 15 Most Carried 8 | 6 7 8 8 Average Carried 6 | 6 5 7 8 Final Capacity 15 | 8 15 15 15 Final Carried 8 | 6 7 8 8 Class Distribution -------------------- 100% | Mutant Dominant Class ---------------- Mutant | -10/Materials Mutant | -10/Mines Mutant | -10/Subcaves Resources | -11 -10 -10 -10 ----------- Run | Yrd Mat Min Sub Matter Collected 474 | 200 224 50 . Remotely . | . . . . Salvage Created 489 | . 431 58 . Parts 44 | . 35 9 . Haulers Intercepted . | . . . . Recyclers Shooed . | . . . . Parts Field Recycled . | . . . . Retrieved Matter . | . . . . Parts Self-Destructed . | . . . . Prevented . | . . . . Kills | -11 -10 -10 -10 ------- Run | Yrd Mat Min Sub Combat Hostiles Destroyed 18 | . 15 3 . Guns 14 | . 14 . . Cannons 3 | . . 3 . AOE 1 | . 1 . . Classes Destroyed 5 | . 4 1 . Worker 3 | . 3 . . Builder 3 | . 3 . . Tunneler 1 | . . 1 . Swarmer 12 | . 9 3 . Grunt 6 | . 6 . . Best Kill Streak 7 | . 7 3 . Combat Bots Only 3 | . 3 3 . Max Kills in Single Turn 3 | . 3 1 . Gunslinging . | . . . . Exploded 1 | . 1 . . Melee . | . . . . Uniques/NPCs Destroyed . | . . . . Combat | -11 -10 -10 -10 -------- Run | Yrd Mat Min Sub Hostile Shots Fired 153 | . 119 22 12 Missed 50 | . 35 12 3 Damage Taken 1307 | . 1022 75 210 Core 258 | . 218 15 25 Absorbed by Shields . | . . . . Redirected to Shielding 35 | . 25 3 7 Core Remaining (%) 100 | 100 . . . Volleys Fired 71 | . 61 8 2 Largest 2 | . 2 2 2 Hottest 120 | . 70 120 120 Shots Fired 130 | . 110 16 4 Gun 109 | . 109 . . Cannon 19 | . . 15 4 Launcher 2 | . 1 1 . Special . | . . . . Kinetic 57 | . 57 . . Thermal 71 | . 52 15 4 Explosive 2 | . 1 1 . Electromagnetic . | . . . . Robot Hit Streak 13 | . 13 4 1 Robot Miss Streak 5 | . 4 5 1 Penetration Max . | . . . . Secondary Targets . | . . . . Shots Hit Robots 72 | . 63 7 2 Core Hits 32 | . 27 4 1 Critical Kills . | . . . . Critical Parts Destroyed . | . . . . Critical Strikes 1 | . 1 . . Burn 1 | . 1 . . Melee Attacks . | . . . . Impact . | . . . . Slashing . | . . . . Piercing . | . . . . Sneak Attacks . | . . . . Combat Hostiles . | . . . . Follow-up Attacks . | . . . . Damage Inflicted 1334 | . 1160 140 34 Guns 722 | . 722 . . Cannons 174 | . . 140 34 Explosions 437 | . 437 . . Melee . | . . . . Ramming 1 | . 1 . . Kinetic 389 | . 389 . . Thermal 843 | . 669 140 34 Explosive 101 | . 101 . . Electromagnetic . | . . . . Impact . | . . . . Slashing . | . . . . Piercing . | . . . . Highest Corruption . | . . . . Average Corruption . | . . . . Corruption Purged . | . . . . Corruption Blocked . | . . . . Overload Shots . | . . . . Overflow Damage 68 | . 68 . . Projectiles . | . . . . Explosions 68 | . 68 . . Melee . | . . . . Knockbacks . | . . . . Impact . | . . . . Kinetic . | . . . . Secondary . | . . . . Self-Inflicted Damage 255 | . 255 . . Shots 4 | . 4 . . Rammed 1 | . 1 . . Targets Rammed 1 | . 1 . . Kicked . | . . . . Crushed . | . . . . Highest Temperature 375 | . 204 375 . Average Temperature 81 | . 52 188 . Received Heat Transfer 180 | . 180 . . Effects 1 | . . 1 . Shutdowns 1 | . . 1 . Siege Activations . | . . . . Robots Corrupted . | . . . . Combat Hostiles . | . . . . Parts Fried . | . . . . Impact Corruptions . | . . . . Robots Melted . | . . . . Combat Hostiles . | . . . . Parts Melted 1 | . 1 . . Heat Transferred 1586 | . 1216 296 74 Parts Sabotaged . | . . . . Parts Stolen . | . . . . Parts Stripped . | . . . . Power Chain Reactions . | . . . . Alert | -11 -10 -10 -10 ------- Run | Yrd Mat Min Sub Peak Influence 249 | . 249 177 . Initial 96 | . . 96 . Average 139 | . 132 160 . Maximum Alert Level 1 | . 1 . . Low Security (%) 84 | 100 79 100 . Level 1 15 | . 20 . . Level 2 . | . . . . Level 3 . | . . . . Level 4 . | . . . . Level 5 . | . . . . High Security . | . . . . Max Security . | . . . . Squads Dispatched 3 | . 3 . . Investigation 2 | . 2 . . Extermination . | . . . . Reinforcement 1 | . 1 . . Assault . | . . . . Garrison . | . . . . Intercept . | . . . . Searches Triggered . | . . . . Construction Impeded . | . . . . Haulers Reinforced . | . . . . Active Scanning Responses . | . . . . Cargo Convoy Interrupts . | . . . . Stealth | -11 -10 -10 -10 --------- Run | Yrd Mat Min Sub Distress Signals . | . . . . Communications Jammed . | . . . . Distress Signals . | . . . . Times Spotted 28 | . 23 3 2 Peak Tracking Total 5 | . 5 3 2 Tactical Retreats 1 | . 1 . . Traps | -11 -10 -10 -10 ------- Run | Yrd Mat Min Sub Traps Triggered 3 | . 3 . . Indirectly . | . . . . Trap Hack Attempts . | . . . . Triggered . | . . . . Disarmed . | . . . . Reprogrammed . | . . . . Reused . | . . . . Traps Extracted . | . . . . Installed . | . . . . Triggered . | . . . . Machines | -11 -10 -10 -10 ---------- Run | Yrd Mat Min Sub Machines Disabled 3 | . 3 . . Max in Single Turn 3 | . 3 . . Machines Repaired . | . . . . Machines Dismantled . | . . . . Machines Sabotaged . | . . . . Overloaded Fab Kills . | . . . . Hacking | -11 -10 -10 -10 --------- Run | Yrd Mat Min Sub Machines Accessed 5 | . 5 . . Terminals 5 | . 5 . . Fabricators . | . . . . Repair Stations . | . . . . Recycling Units . | . . . . Scanalyzers . | . . . . Garrison Access . | . . . . Total Hacks 15 | . 15 . . Successful 9 | . 9 . . Failed 6 | . 6 . . Catastrophic 1 | . 1 . . Database Lockouts . | . . . . Manual 16 | . 16 . . Terminals 15 | . 15 . . Fabricators . | . . . . Repair Stations . | . . . . Recycling Units . | . . . . Scanalyzers . | . . . . Garrison Access . | . . . . Terminal Hacks 3 | . 3 . . Branch Access Points 1 | . 1 . . Dispatch Records 1 | . 1 . . Surveillance Status 1 | . 1 . . Fabricator Hacks . | . . . . Repair Station Hacks . | . . . . Recycling Unit Hacks . | . . . . Scanalyzer . | . . . . Garrison Access Hacks . | . . . . Unauthorized Hacks 6 | . 6 . . Terminals 6 | . 6 . . Assimilate 1 | . 1 . . Botnet 4 | . 4 . . Operators 1 | . 1 . . Fabricators . | . . . . Repair Stations . | . . . . Recycling Units . | . . . . Scanalyzers . | . . . . Garrison Access . | . . . . Data Cores Recovered . | . . . . Used . | . . . . Hacking Detections 3 | . 3 . . Full Trace Events . | . . . . Feedback Events . | . . . . Feedback Blocked . | . . . . Robot Schematics Acquired . | . . . . Robots Built . | . . . . Authchips . | . . . . Time . | . . . . Total Robot Build Rating . | . . . . Part Schematics Acquired . | . . . . Parts Built . | . . . . Authchips . | . . . . Time . | . . . . Total Part Build Rating . | . . . . Parts Repaired . | . . . . Time . | . . . . Parts Recycled . | . . . . Recycled Matter . | . . . . Retrieved Matter . | . . . . Retrieved Components . | . . . . Parts Scanalyzed . | . . . . Part Schematics Acquired . | . . . . Parts Damaged . | . . . . Bothacking | -11 -10 -10 -10 ------------ Run | Yrd Mat Min Sub Used RIF Installer . | . . . . Robots Hacked . | . . . . Non-combat . | . . . . Combat . | . . . . Robot Hacks Applied . | . . . . Relay Couplers Released . | . . . . Fabnet Peak Effective % . | . . . . Robots Rewired . | . . . . Allies Hacked . | . . . . Hacks Repelled . | . . . . Allies | -11 -10 -10 -10 -------- Run | Yrd Mat Min Sub Total Allies . | . . . . Largest Group . | . . . . Highest-Rated Group . | . . . . Highest-Rated Ally . | . . . . Total Orders . | . . . . Ally Attacks . | . . . . Total Damage . | . . . . Kills . | . . . . Allies Corrupted . | . . . . Allies Melted . | . . . . Intel | -11 -10 -10 -10 ------- Run | Yrd Mat Min Sub Robot Analysis Total . | . . . . Derelict Logs Recovered . | . . . . Drone Launches . | . . . . Drone Recoveries . | . . . . Exploration | -11 -10 -10 -10 ------------- Run | Yrd Mat Min Sub Turns Passed 879 | 3 597 226 53 Spaces Moved 490 | 3 320 117 50 Core 6 | . 6 . . Treads . | . . . . Legs 9 | 3 6 . . Wheels 475 | . 308 117 50 Hover . | . . . . Flight . | . . . . Fastest Speed 95 | 120 95 95 95 Average Speed 107 | 120 114 95 95 Slowest Speed 500 | 120 500 95 95 Overloaded Moves . | . . . . Propulsion Burnouts . | . . . . Robots Hopped . | . . . . Cave-ins Triggered . | . . . . Exploration Rate (%) 31 | 2 72 47 6 Regions Visited 3 Branch Regions 2 Pre-discovered Areas . | . . . . Known Exits Taken 1 | . 1 . . Unknown Exits Taken 2 | 1 . 1 . Scrap Searched . | . . . . Spaces Dug . | . . . . Terrain Destroyed 62 | . 56 6 . Melee . | . . . . Projectile . | . . . . AOE 62 | . 56 6 . Terrain Rammed . | . . . . Walls Destroyed . | . . . . Machines Disabled . | . . . . Actions | -11 -10 -10 -10 --------- Run | Yrd Mat Min Sub Total 710 | 2 441 215 52 Wait 120 | . 31 89 . Move 487 | 2 319 116 50 Hop . | . . . . Pick Up 6 | . 5 1 . Fast Attach 8 | . 8 . . Attach 6 | . 6 . . Detach 2 | . 2 . . Swap 5 | . 4 1 . Drop 4 | . 4 . . Fire 71 | . 61 8 2 Melee . | . . . . Ram 1 | . 1 . . Kick . | . . . . Crush . | . . . . Escape Stasis . | . . . . Rewire . | . . . . Trap . | . . . . Miscellaneous . | . . . . Route ------- -11/Scrapyard -10/Materials (discovered 4 exits: [*Mat x2] / *Min x2) -10/Mines (discovered 2 exits: [*Mat] / [*Sub]) -10/Subcaves History --------- Turn | Location | Event 1 | -11/Scrapyard | Discovered new exit (range 2) 4 | -11/Scrapyard | Entered Materials 269 | -10/Materials | Discovered new exit (range 16) 303 | -10/Materials | Build established: Mutant 461 | -10/Materials | Discovered new exit (range 6) 468 | -10/Materials | Identified exit to Mines 535 | -10/Materials | Core integrity fell below 50% 545 | -10/Materials | Core integrity fell below 20% 559 | -10/Materials | Lost 4 parts (1n3w) 601 | -10/Materials | Entered Mines 710 | -10/Mines | Discovered new exit (range 10) 810 | -10/Mines | Discovered new exit (range 5) 827 | -10/Mines | Entered Subcaves 880 | -10/Subcaves | Destroyed by 1I-XDT(R) with Subdweller Machine Gun Last Messages --------------- 00691_ K-01 Serf collects debris. 00693_ A derelict is hurriedly installing traps. 00695_ 8R-QQM(g): "Hehe, this'll put a wrench in their mining defense operations..." 00695_ 8R-QQM(g) slips into the shadows. 00708_ K-01 Serf collects debris. 00710_ EXIT=FOUND 00712_ K-01 Serf collects debris. 00713_ T-07 Excavator is excavating. 00717_ K-01 Serf collects debris. 00717_ T-07 Excavator is excavating. 00725_ K-01 Serf collects debris. 00750_ T-07 Excavator is excavating. 00810_ EXIT=FOUND 00818_ T-07 Excavator is excavating. LOCATION=UNKNOWN AMBIENT_HEAT=-10 GOAL=ESCAPE 00876_ Ion Engine destroyed. 00876_ Wheel destroyed. Map ----- +----------------------------------------------------+ | ?????????????????????????????????????????????????? | | ?????????????????????????????????????????????????? | | ?????????????????????????????????????????????????? | | ?????????????????????????????????????????????????? | | ?????????????????????????????????????????????????? | | ?????????????????????????????????????????????????? | | ?????????????????????????????????????????????????? | | ?????????????????????????????????????????????????? | | ?????????????????????????????????????????????????? | | ?????????????????????????????????????????????????? | | ?????????????????????????????????????????????????? | | ?????????????????????????????????#???????????????? | | ?????????????????????????????????# ?????###??????? | | ?????????????????????????????????# ????## ####### | | ?????????????????????????????????# ???# | | ?????????????????????????????????# ???# | | ???????????????????????????? ## ???#### | | ???????????????????????????? ?##### | | ??????????????????????????? ## | | ???????????????????????????? | | ????????????????????????????????####### | | ?????????????????????????????????????## ##### | | ????????????????###??????????????##### ##???## | | ???????????????## #????#######??## ##?????# | | ??????????????## ##??## ##?# #??????# | | ?????????????## #### @ ### #####??????# | | ?????????????# ## R R ##??????????# | | ?????????????## #### #??????????# | | ??????????????##### ##??# #??????????# | | ??????????????????## ##??# #??????# | | ???????????????????## #???# ## ## ##??????## | | ????????????????????###???##########?####????????? | | ?????????????????????????????????????????????????? | | ?????????????????????????????????????????????????? | | ?????????????????????????????????????????????????? | | ?????????????????????????????????????????????????? | | ?????????????????????????????????????????????????? | | ?????????????????????????????????????????????????? | | ?????????????????????????????????????????????????? | | ?????????????????????????????????????????????????? | | ?????????????????????????????????????????????????? | | ?????????????????????????????????????????????????? | | ?????????????????????????????????????????????????? | | ?????????????????????????????????????????????????? | | ?????????????????????????????????????????????????? | | ?????????????????????????????????????????????????? | | | | | | | | | +----------------------------------------------------+ Best States ------------- Heat Dissipation 25 Energy Generation 10 Energy Capacity 250 Matter Stores 300 Matter Capacity 300 Sight Range 16 Terrain Scan Density 10 Power Shielding 33 Evasion (%) 55 Item Schematics ----------------- None Robot Schematics ------------------ None Fabricated ------------ Nothing Alien Tech Used ----------------- None Achievements -------------- None Challenges ------------ None Game ------ Seed AssemblyPhaseGuard Manual? 0 Play Time 00:08:38 Cumulative 119.3 hours Start 2025.03.12 @ 21:37:27 End 2025.03.12 @ 21:46:22 Sessions 1 Manual Loads 0 Difficulty Rogue Special Mode None Game No. 177 Rogue 160 Adventurer 15 Explorer 2 Win Type - Total 1 Types 1/0/0/0/0/0/0/0/0 Lore% 22 Gallery% 56 Achievement% 45 Wizard Run 0 Options --------- Layout 0 ASCII 0 Keyboard 0 Movement Arrows Keybinds 0 Fullscreen 1 Font 36/Smallcaps Map View 76x50 Zoom Use 0% Tactical HUD 1 Map Filters NONE Filters NONE Steam 1 RUN: b56d2758-bd9a-4162-a478-f2545bc814a6